bitfinex-derivatives/quotes_ETHF0:USTF0_20250317
["timestamp","ask_amount","ask_price","bid_price","bid_amount"]
[1742252079372,3.13719154,1937.1,1937.0,2.3958]
[1742252080567,3.13719154,1937.1,1937.0,1.3632]
[1742252081366,3.13719154,1937.1,1936.9,3.2078]
[1742252081569,3.0892,1937.0,1936.9,1.3083]
[1742252081970,1.03271,1936.8,1936.7,4.32073]
[1742252082172,4.63815,1937.0,1936.6,4.24832154]
[1742252082173,1.03276,1936.7,1936.6,4.24832154]
[1742252082377,1.73946,1936.7,1936.6,0.00774154]
[1742252083280,1.73946,1936.7,1936.6,2.34886154]
[1742252083882,1.73946,1936.7,1936.6,1.31604154]
[1742252084180,2.41276,1936.7,1936.6,1.31604154]
[1742252084987,2.41276,1936.7,1936.6,2.34886154]
[1742252085181,2.41276,1936.7,1936.6,1.31604154]
[1742252085886,2.41276,1936.7,1936.6,2.34886154]
[1742252086387,2.41276,1936.7,1936.6,1.31604154]
[1742252089685,2.41276,1936.7,1936.6,2.34886154]
[1742252093090,2.41276,1936.7,1936.6,1.31604154]
[1742252093289,9.75,1936.7,1936.2,3.2078]
[1742252093489,1.03287,1936.5,1936.4,1.3663]
[1742252094091,3.04637,1936.5,1936.4,1.3663]
[1742252103493,1.03303,1936.2,1936.1,5.60882165]
[1742252103701,1.03303,1936.2,1936.1,6.26422165]
[1742252103895,1.03303,1936.2,1936.1,7.29730165]
[1742252104797,2.41503,1936.2,1936.1,8.61340165]
[1742252104998,1.033,1936.3,1936.2,1.03303]
[1742252105298,1.033,1936.3,1936.2,2.34913]
[1742252109895,1.033,1936.3,1936.2,1.3161]
[1742252110099,1.033,1936.3,1936.2,2.34913]
[1742252110500,2.4209,1936.3,1936.2,2.34913]
[1742252111204,1.033,1936.3,1936.2,2.34913]
[1742252111801,2.4763,1936.3,1936.2,2.34913]
[1742252112497,1.033,1936.3,1936.2,2.34913]
[1742252116608,2.4629,1936.3,1936.2,2.34913]
[1742252118708,2.4629,1936.3,1936.2,1.3161]
[1742252119707,2.4629,1936.3,1936.2,2.34913]
[1742252120606,2.59501201,1936.4,1936.3,1.03298]
[1742252120907,3.98651201,1936.4,1936.3,2.068]
[1742252121600,3.14703,1936.4,1936.3,2.068]
[1742252122410,3.14703,1936.4,1936.3,3.10098]
[1742252123803,2.42443,1936.4,1936.3,2.068]
[1742252124506,0.83948201,1936.5,1936.4,1.03292]
[1742252124705,1.03285,1936.6,1936.5,1.03287]
[1742252125004,1.03287,1936.5,1936.4,5.4134]
[1742252125198,3.12907,1936.5,1936.4,5.04222]
[1742252127012,3.12907,1936.5,1936.4,3.288]
[1742252127215,1.03298,1936.3,1936.2,6.4958]
[1742252128100,1.03298,1936.3,1936.2,3.2078]
[1742252128309,2.42198,1936.3,1936.2,6.4958]
[1742252128815,2.42198,1936.3,1936.2,7.52879]
[1742252133812,3.97156,1936.3,1936.0,4.24093]
[1742252134021,3.97156,1936.3,1936.0,7.52893]
[1742252134022,1.03308,1936.1,1936.0,7.52893]
[1742252134218,3.83617,1936.2,1936.1,1.03308]
[1742252134418,3.83617,1936.2,1936.1,1.71088]
[1742252135209,3.83617,1936.2,1936.1,2.0632]
[1742252135418,3.83617,1936.2,1936.1,1.3854]
[1742252142127,3.83617,1936.2,1936.1,2.41848]
[1742252142728,3.83617,1936.2,1936.1,3.11448]
[1742252143627,3.83617,1936.2,1936.1,2.0814]
[1742252144329,3.83617,1936.2,1936.1,3.11448]
[1742252144620,3.83617,1936.2,1936.1,2.0814]
[1742252145628,3.83617,1936.2,1936.1,3.11448]
[1742252146935,3.83617,1936.2,1936.1,2.0814]
[1742252147124,3.83617,1936.2,1936.1,3.11448]
[1742252151334,1.03302,1936.3,1936.2,1.03298]
[1742252151531,1.03302,1936.3,1936.2,2.42798]
[1742252151930,2.38472,1936.3,1936.2,2.42798]
[1742252154034,2.38472,1936.3,1936.2,1.395]
[1742252157633,2.38472,1936.3,1936.2,2.42803]
[1742252157834,1.03302,1936.3,1936.2,2.42803]
[1742252158634,2.33782,1936.3,1936.2,2.42803]
[1742252160140,0.8401957,1936.4,1936.3,1.03298]
[1742252160323,3.3128357,1936.6,1936.4,1.03292]
[1742252160637,3.3128357,1936.6,1936.5,1.3227]
[1742252160638,4.6176357,1936.6,1936.5,1.3227]
[1742252164131,1.03298,1936.3,1936.2,7.52779]
[1742252164337,1.03298,1936.3,1936.2,6.4948]
[1742252164935,1.70398,1936.3,1936.2,6.4948]
[1742252165535,3.11028,1936.3,1936.2,7.8605]
[1742252165940,3.11028,1936.3,1936.2,8.89353]
[1742252166137,3.11028,1936.3,1936.2,7.8605]
[1742252166638,3.11028,1936.3,1936.2,4.5735]
[1742252167838,3.11028,1936.3,1936.2,5.60653]
[1742252168138,3.11028,1936.3,1936.2,4.5735]
[1742252169539,3.11028,1936.3,1936.2,5.60653]
[1742252170746,3.11028,1936.3,1936.2,1.3657]
[1742252185554,1.03308,1936.1,1936.0,3.2078]
[1742252186453,2.33758,1936.1,1936.0,3.2078]
[1742252187655,2.33758,1936.1,1936.0,4.24094]
[1742252188760,2.33758,1936.1,1936.0,5.61334]
[1742252189561,2.33758,1936.1,1936.0,4.5802]
[1742252194363,2.33758,1936.1,1936.0,5.61334]
[1742252194554,2.33758,1936.1,1936.0,4.5802]
[1742252196656,2.33758,1936.1,1936.0,5.61334]
[1742252197359,2.33758,1936.1,1936.0,4.5802]
[1742252198764,2.33758,1936.1,1936.0,5.61334]
[1742252200966,2.33758,1936.1,1936.0,4.5802]
[1742252203761,10.3811,1936.1,1935.4,3.2078]
[1742252203960,1.0334,1935.6,1935.5,1.03338]
[1742252205057,2.3676,1935.6,1935.5,3.14088]
[1742252206067,2.36755,1935.6,1935.5,3.14088]
[1742252210668,1.03334,1935.7,1935.6,1.03335]
[1742252210868,1.03334,1935.7,1935.6,2.44395]
[1742252211371,1.4004,1935.7,1935.6,2.44395]
[1742252211570,1.04093154,1935.9,1935.8,1.03324]
[1742252211773,1.03324,1935.8,1935.7,3.76405]
[1742252211959,2.43364,1935.8,1935.7,2.35345]
[1742252214667,2.43364,1935.8,1935.7,0.667]
[1742252214871,3.13574,1935.8,1935.7,0.667]
[1742252215172,1.0333,1935.7,1935.6,7.52712]
[1742252215374,2.4587,1935.7,1935.6,7.52712]
[1742252217665,2.58344,1935.6,1935.1,3.2078]
[1742252217871,1.03351,1935.3,1935.2,2.46333]
[1742252221480,1.03351,1935.3,1935.2,1.4298]
[1742252222579,1.03351,1935.3,1935.2,2.46336]
[1742252223579,2.4589,1935.4,1935.3,1.03351]
[1742252224375,1.03351,1935.3,1935.2,2.46332]
[1742252224577,2.44361,1935.3,1935.2,2.46332]
[1742252225281,2.44361,1935.3,1935.2,3.83312]
[1742252225782,1.4101,1935.3,1935.2,7.04092]
[1742252226281,1.3509,1935.5,1935.2,6.0074]
[1742252226282,1.72814,1935.5,1935.2,6.0074]
[1742252226481,3.13824,1935.5,1935.4,1.03346]
[1742252228284,1.03346,1935.4,1935.3,2.40327]
[1742252228485,2.40446,1935.4,1935.3,2.40327]
[1742252228685,3.07556,1935.4,1935.3,2.40327]
[1742252229783,3.07556,1935.4,1935.3,1.3698]
[1742252230379,1.03351,1935.3,1935.2,3.2078]
[1742252230582,1.03351,1935.3,1934.8,8.55043]
[1742252230583,1.03362,1935.1,1935.0,2.40301]
[1742252230888,1.03362,1935.1,1935.0,1.3694]
[1742252231181,1.03372,1934.9,1934.8,5.01476]
[1742252231884,1.4306,1935.0,1934.8,3.981]
[1742252232286,2.4643,1935.0,1934.9,1.03372]
[1742252232478,1.4306,1935.0,1934.9,2.40312]
[1742252232684,1.73581,1935.2,1935.0,1.03367]
[1742252232887,2.43521,1935.2,1935.1,1.3694]
[1742252234086,3.74601,1935.2,1935.1,1.3694]
[1742252234690,3.74601,1935.2,1934.9,1.03368]
[1742252234691,5.9202,1935.2,1934.8,3.981]
[1742252234986,1.03369,1935.0,1934.9,1.4148]
[1742252235187,1.03369,1935.0,1934.9,2.44852]
[1742252236189,2.34446,1935.1,1934.9,2.44852]
[1742252236391,2.34446,1935.1,1935.0,1.4148]
[1742252244493,1.03372,1934.9,1934.8,0.694]
[1742252245684,1.03372,1934.9,1934.8,1.72778]
[1742252245887,2.39122,1934.9,1934.8,3.07718]
[1742252246193,2.39122,1934.9,1934.8,2.0434]
[1742252246391,3.08692,1934.9,1934.8,3.07718]
[1742252246792,3.08692,1934.9,1934.8,2.0434]
[1742252247695,3.08692,1934.9,1934.8,3.07718]
[1742252250091,1.03378,1934.8,1934.7,3.2078]
[1742252250303,1.03383,1934.7,1934.6,4.24928507]
[1742252250495,1.71153,1934.7,1934.6,4.24928507]
[1742252250697,3.06113,1934.7,1934.6,4.24928507]
[1742252251397,1.03388,1934.6,1934.5,1.3699]
[1742252251698,3.07588,1934.6,1934.5,1.3699]
[1742252251897,3.07588,1934.6,1934.5,2.40384]
[1742252252798,3.07588,1934.6,1934.5,1.3699]
[1742252255299,3.07588,1934.6,1934.5,2.40384]
[1742252255500,3.07588,1934.6,1934.5,1.3699]
[1742252255803,1.03404,1934.3,1934.2,3.2078]
[1742252256197,1.03423,1934.0,1933.9,1.43945888]
[1742252256400,1.03423,1934.0,1933.9,1.03422]
[1742252256700,3.29235,1934.2,1934.0,1.0342]
[1742252256701,1.71869,1934.1,1934.0,1.0342]
[1742252257102,1.0342,1934.0,1933.9,2.42791]
[1742252257298,2.4175,1934.0,1933.9,2.42791]
[1742252257602,1.3833,1934.0,1933.9,2.42791]
[1742252257899,2.4175,1934.0,1933.9,2.42791]
[1742252261502,1.0341,1934.3,1934.2,1.03407]
[1742252261796,6.0399,1934.5,1934.0,6.0225]
[1742252262002,1.0341,1934.3,1934.2,1.03407]
[1742252264910,2.38802,1934.4,1934.3,1.03404]
[1742252265407,1.354,1934.4,1934.3,1.03404]
[1742252265807,2.38799,1934.4,1934.3,1.4208]
[1742252266805,2.38799,1934.4,1934.3,2.45484]
[1742252267202,2.38799,1934.4,1934.3,1.4208]
[1742252269115,7.22702,1934.4,1934.0,3.9218]
[1742252269315,1.03415,1934.1,1934.0,4.6207]
[1742252270408,3.03725,1934.1,1934.0,5.6549]
[1742252271905,3.03725,1934.1,1934.0,1.4129]
[1742252273809,1.03426,1933.9,1933.8,4.5994]
[1742252274416,1.03426,1933.9,1933.8,4.64539132]
[1742252274809,1.03426,1933.9,1933.8,5.67970132]
[1742252275413,1.03426,1933.9,1933.8,7.11310132]
[1742252276914,1.03426,1933.9,1933.8,6.07879132]
[1742252277116,1.73936,1933.9,1933.8,6.07879132]
[1742252277408,1.73936,1933.9,1933.8,7.11310132]
[1742252277609,1.73936,1933.9,1933.8,6.07879132]
[1742252277819,1.73936,1933.9,1933.8,7.11310132]
[1742252278118,1.73936,1933.9,1933.8,6.07879132]
[1742252278713,1.73936,1933.9,1933.8,7.11310132]
[1742252280119,1.73936,1933.9,1933.8,6.07879132]
[1742252281117,1.73936,1933.9,1933.8,4.68719132]
[1742252282112,1.03426,1933.9,1933.8,5.72150132]
[1742252282607,1.03426,1933.9,1933.8,6.42910132]
[1742252282808,1.03426,1933.9,1933.8,5.39479132]
[1742252284922,1.03426,1933.9,1933.8,6.42910132]
[1742252285320,1.03426,1933.9,1933.8,5.39479132]
[1742252286421,41.83426,1933.9,1933.8,5.39479132]
[1742252286821,1.408,1934.0,1933.8,5.39479132]
[1742252287127,2.44226,1934.0,1933.9,1.3307]
[1742252287616,2.44226,1934.0,1933.9,1.37669132]
[1742252295618,2.44226,1934.0,1933.9,0.04599132]
[1742252295919,3.28366639,1934.0,1933.9,1.47329132]
[1742252296423,4.83495639,1934.0,1933.5,1.03446]
[1742252296610,1.03447,1933.5,1933.4,4.6273]
[1742252297520,1.03447,1933.5,1933.4,5.66182]
[1742252297715,2.43317,1933.5,1933.4,7.08822]
[1742252298219,1.03462,1933.3,1933.2,3.2078]
[1742252298426,2.59382154,1933.6,1933.2,3.2078]
[1742252298427,0.00774154,1933.6,1933.5,1.03447]
[1742252298815,1.04216154,1933.6,1933.5,2.46087]
[1742252301023,0.00774154,1933.6,1933.5,3.17867]
[1742252303521,1.4399,1933.8,1933.7,1.03436]
[1742252303726,1.4399,1933.8,1933.7,4.24216]
[1742252304024,2.47421,1933.8,1933.7,4.24216]
[1742252304228,2.47421,1933.8,1933.7,5.62126]
[1742252304420,1.03428,1933.9,1933.8,1.03431]
[1742252304625,2.38878,1933.9,1933.8,2.41341]
[1742252304827,2.38878,1933.9,1933.8,3.12131]
[1742252307630,2.38878,1933.9,1933.8,2.087]
[1742252309031,2.38878,1933.9,1933.8,2.787]
[1742252309526,2.38878,1933.9,1933.8,3.82131]
[1742252310230,2.38878,1933.9,1933.8,2.787]
[1742252311331,2.38878,1933.9,1933.8,3.82131]
[1742252314737,2.38878,1933.9,1933.8,2.787]
[1742252315034,2.38878,1933.9,1933.8,1.3791]
[1742252315427,1.03431,1933.8,1933.7,0.00774154]
[1742252315628,3.08071,1933.8,1933.7,1.39734154]
[1742252317432,3.08071,1933.8,1933.7,2.43170154]
[1742252317729,1.3659,1933.8,1933.7,2.43170154]
[1742252318028,1.0343,1933.9,1933.8,1.03431]
[1742252318235,2.46747154,1934.0,1933.9,1.03426]
[1742252318634,2.46747154,1934.0,1933.9,2.37226]
[1742252318836,2.46747154,1934.0,1933.9,1.338]
[1742252319934,1.03426,1933.9,1933.8,1.03431]
[1742252320237,1.03431,1933.8,1933.7,2.38668154]
[1742252320633,2.37091,1933.8,1933.7,2.38668154]
[1742252321438,1.3366,1933.8,1933.7,3.09408154]
[1742252321939,0.7096,1933.9,1933.8,1.03431]
[1742252322239,1.4215,1933.9,1933.8,2.48161]
[1742252322842,0.8495034,1934.0,1933.9,1.03426]
[1742252323044,2.46349154,1934.0,1933.9,2.1052]
[1742252323239,2.46349154,1934.0,1933.9,1.4473]
[1742252326541,3.30522076,1934.0,1933.9,1.4473]
[1742252326945,2.46349154,1934.0,1933.9,1.4473]
[1742252327140,3.30531349,1934.0,1933.9,1.4473]
[1742252328745,1.03431,1933.8,1933.7,0.71514154]
[1742252328945,1.03431,1933.8,1933.7,1.74949154]
[1742252329343,1.03431,1933.8,1933.7,2.42229154]
[1742252330141,2.34501,1933.8,1933.7,3.80669154]
[1742252330644,2.34501,1933.8,1933.7,2.77234154]
[1742252331550,2.34501,1933.8,1933.7,3.80670154]
[1742252332951,1.03431,1933.8,1933.7,3.80670154]
[1742252334447,2.36501,1933.8,1933.7,1.39214154]
[1742252334745,3.05471,1933.8,1933.7,1.39214154]
[1742252335656,3.05471,1933.8,1933.7,2.42650154]
[1742252336154,3.05471,1933.8,1933.7,1.39214154]
[1742252337056,3.05471,1933.8,1933.7,2.42650154]
[1742252337544,3.05471,1933.8,1933.7,1.39214154]
[1742252345757,3.05471,1933.8,1933.7,0.00774154]
[1742252346057,1.03447,1933.5,1933.4,4.5458]
[1742252346858,3.16517,1933.5,1933.4,4.5458]
[1742252348960,3.16517,1933.5,1933.4,3.2078]
[1742252349159,3.16517,1933.5,1933.4,4.6193]
[1742252349356,3.16517,1933.5,1933.4,1.4115]
[1742252356880,2.47247,1933.5,1933.4,2.0694]
[1742252357172,3.15047,1933.5,1933.4,2.0694]
[1742252368877,1.03458,1933.3,1933.2,3.2078]
[1742252369078,1.03463,1933.2,1933.1,0.6896]
[1742252369279,1.03469,1933.1,1933.0,7.2035]
[1742252369782,2.35819,1933.1,1933.0,7.2035]
[1742252370184,2.35819,1933.1,1933.0,7.2025]
[1742252370382,2.35819,1933.1,1933.0,3.9135]
[1742252370583,2.35819,1933.1,1933.0,7.2025]
[1742252370887,2.35819,1933.1,1933.0,8.23724]
[1742252371087,2.35819,1933.1,1933.0,7.2025]
[1742252371786,2.35819,1933.1,1933.0,8.23724]
[1742252371974,2.35819,1933.1,1933.0,7.2025]
[1742252372287,2.35819,1933.1,1933.0,9.62704]
[1742252373094,2.35819,1933.1,1933.0,8.5923]
[1742252374588,2.35819,1933.1,1933.0,9.62704]
[1742252377191,2.35819,1933.1,1933.0,6.41924]
[1742252377392,2.35819,1933.1,1933.0,9.62704]
[1742252378483,2.35819,1933.1,1933.0,8.5923]
[1742252380295,2.35819,1933.1,1933.0,9.62704]
[1742252383499,1.3235,1933.1,1933.0,9.62704]
[1742252387598,1.03461,1933.3,1933.0,11.17911]
[1742252387795,1.3469,1933.1,1933.0,8.23724]
[1742252388694,2.38159,1933.1,1933.0,8.23724]
[1742252388898,1.3469,1933.1,1933.0,8.23724]
[1742252391802,1.3469,1933.1,1933.0,8.89349521]
[1742252394297,1.3469,1933.1,1933.0,8.23724]
[1742252395204,1.3469,1933.1,1933.0,8.89371812]
[1742252399800,2.39642,1933.4,1933.3,1.03458]
[1742252400006,2.37413,1933.2,1933.1,1.03469]
[1742252400209,2.37413,1933.2,1933.1,4.32369]
[1742252400708,1.3395,1933.2,1933.1,4.32369]
[1742252400909,2.37413,1933.2,1933.1,4.32369]
[1742252401906,1.3395,1933.2,1933.1,4.32369]
[1742252402107,8.43366,1933.9,1933.5,1.03443]
[1742252402299,1.03447,1933.5,1933.4,4.32348]
[1742252402502,2.41096,1933.6,1933.5,1.03447]
[1742252403601,3.73106,1933.6,1933.5,1.03447]
[1742252403804,1.03447,1933.5,1933.4,4.99058]
[1742252404017,1.03447,1933.5,1933.3,4.24237]
[1742252404018,1.03452,1933.4,1933.3,4.24237]
[1742252404309,1.03452,1933.4,1933.3,7.53138]
[1742252409612,1.3201,1933.5,1933.4,1.03452]
[1742252409807,1.3201,1933.5,1933.4,3.12712]
[1742252410212,1.3201,1933.5,1933.4,3.84502]
[1742252410511,2.35457,1933.5,1933.4,3.84502]
[1742252411616,3.04247,1933.5,1933.4,3.84502]
[1742252413513,3.04247,1933.5,1933.4,1.03452]
[1742252413714,3.04247,1933.5,1933.4,2.34722]
[1742252414110,1.03452,1933.4,1933.3,4.24236]
[1742252414315,2.45802,1933.4,1933.3,3.2078]
[1742252414614,2.45802,1933.4,1933.3,4.24238]
[1742252414813,2.45802,1933.4,1933.3,5.55508]
[1742252415015,2.45802,1933.4,1933.3,3.2078]
[1742252415415,2.45802,1933.4,1933.0,8.4848]
[1742252415416,1.03469,1933.1,1933.0,8.4848]
[1742252416115,1.03469,1933.1,1933.0,9.51954]
[1742252416513,2.35949,1933.1,1933.0,9.51954]
[1742252416814,1.03488,1932.8,1932.7,3.2078]
[1742252417010,1.03488,1932.8,1932.7,7.8604]
[1742252417417,1.03488,1932.8,1932.7,8.51650733]
[1742252417813,1.3248,1932.8,1932.7,9.55136733]
[1742252418008,1.3248,1932.8,1932.7,4.89880733]
[1742252418818,1.3248,1932.8,1932.7,5.6063]
[1742252419625,2.35965,1932.8,1932.7,5.6063]
[1742252419810,1.3248,1932.8,1932.7,5.6063]
[1742252421418,2.35965,1932.8,1932.7,5.6063]
[1742252421720,1.3248,1932.8,1932.7,5.6063]
[1742252422230,2.35965,1932.8,1932.7,5.6063]
[1742252424321,2.35965,1932.8,1932.7,4.5714]
[1742252424523,3.07255,1932.8,1932.7,3.2078]
[1742252425114,1.0349,1932.7,1932.6,1.3087]
[1742252425314,1.03495,1932.6,1932.5,3.293]
[1742252425715,2.35115,1932.6,1932.5,3.293]
[1742252427319,1.3162,1932.6,1932.3,3.2078]
[1742252427520,1.03506,1932.4,1932.3,6.5038]
[1742252427715,1.03506,1932.4,1932.3,7.8205]
[1742252428022,3.02846,1932.4,1932.3,7.8205]
[1742252428523,3.02846,1932.4,1932.3,3.2078]
[1742252428919,1.03517,1932.2,1932.1,5.2885]
[1742252429612,1.03517,1932.2,1932.1,6.32372]
[1742252432321,1.03517,1932.2,1932.1,5.2885]
[1742252434131,1.03517,1932.2,1932.1,6.32372]
[1742252434328,1.03517,1932.2,1932.1,5.2885]
[1742252435527,1.03517,1932.2,1932.1,6.32372]
[1742252437924,1.03517,1932.2,1932.1,5.2885]
[1742252438627,1.03517,1932.2,1932.1,6.32372]
[1742252439721,1.03517,1932.2,1932.1,5.2885]
[1742252440121,1.72747,1932.2,1932.1,5.2885]
[1742252440328,1.72747,1932.2,1932.1,3.2078]
[1742252440521,1.72747,1932.2,1931.6,1.03548]
[1742252440522,2.58809,1932.1,1931.6,1.03548]
[1742252440726,1.03546,1931.7,1931.6,2.0158]
[1742252441426,1.03546,1931.7,1931.6,2.73415978]
[1742252441630,2.46326,1931.7,1931.6,2.73415978]
[1742252442030,2.46326,1931.7,1931.6,3.72259]
[1742252442230,2.46326,1931.7,1931.6,3.79330792]
[1742252443227,10.4836,1931.7,1930.7,3.2078]
[1742252443418,1.4278,1931.6,1931.3,3.2078]
[1742252443626,0.00776177,1931.8,1931.4,2.8292]
[1742252443931,1.3611,1931.7,1931.6,1.03548]
[1742252444121,1.3611,1931.7,1931.5,1.03552]
[1742252444321,1.3611,1931.7,1931.4,4.7401]
[1742252444322,1.3611,1931.7,1931.6,2.38539]
[1742252444924,2.39654,1931.7,1931.6,1.3499]
[1742252445230,4.5689,1931.7,1931.5,1.03552]
[1742252445427,1.3611,1931.6,1931.5,2.38542]
[1742252445627,0.00776177,1931.8,1931.7,1.03544]
[1742252445828,2.40424177,1931.8,1931.7,1.03544]
[1742252446025,2.40424177,1931.8,1931.6,2.38535]
[1742252446226,1.3611,1931.7,1931.6,5.73835]
[1742252446432,1.3611,1931.7,1931.6,4.38845]
[1742252448126,1.3611,1931.7,1931.6,4.43486946]
[1742252448825,3.2078,1932.5,1931.8,2.58842]
[1742252449031,1.4473,1932.3,1932.2,1.03517]
[1742252449226,1.4473,1932.3,1932.2,4.39717]
[1742252450034,1.4473,1932.3,1932.2,4.4596895]
[1742252450430,1.4473,1932.3,1932.2,5.1645895]
[1742252451037,2.48241,1932.3,1932.2,5.1645895]
[1742252451434,5.69021,1932.3,1932.2,0.0625195]
[1742252451636,3.19611,1932.3,1932.2,0.0625195]
[1742252451939,6.40391,1932.3,1932.2,0.0625195]
[1742252455626,7.95667,1932.3,1931.7,0.7049]
[1742252455824,1.03538,1931.9,1931.8,3.363]
[1742252456030,1.03538,1931.9,1931.8,4.39838]
[1742252456829,2.41148,1931.9,1931.8,4.39838]
[1742252458037,1.3761,1931.9,1931.6,1.03547]
[1742252458236,1.03556,1931.5,1931.0,3.385]
[1742252458443,1.3761,1931.4,1931.3,1.03565]
[1742252458640,2.4117,1931.4,1931.3,1.03565]
[1742252459137,1.3761,1931.4,1931.3,1.03565]
[1742252460145,1.3761,1931.4,1931.1,3.2078]
[1742252460337,1.3761,1931.4,1931.3,1.03565]
[1742252461338,1.3761,1931.4,1931.3,4.42765]
[1742252461543,0.00776177,1931.5,1931.4,1.0356]
[1742252461846,0.00776177,1931.5,1931.4,1.7306]
[1742252462335,1.04330177,1931.5,1931.4,1.7306]
[1742252463749,0.00776177,1931.5,1931.4,1.7306]
[1742252463949,1.04330177,1931.5,1931.4,1.7306]
[1742252464156,1.40876177,1931.5,1931.4,1.7306]
[1742252464349,2.44430177,1931.5,1931.4,1.7306]
[1742252464543,1.40876177,1931.5,1931.4,1.7306]
[1742252464849,0.00776177,1931.5,1931.4,1.7306]
[1742252465251,1.03534,1931.9,1931.8,1.03538]
[1742252465451,2.41134,1931.9,1931.8,1.03538]
[1742252465751,1.376,1931.9,1931.8,1.03538]
[1742252465943,1.376,1931.9,1931.8,3.68158]
[1742252466145,2.41133,1931.9,1931.8,3.68158]
[1742252466346,2.41133,1931.9,1931.8,2.6462]
[1742252466549,3.09373,1931.9,1931.8,2.6462]
[1742252466847,3.09373,1931.9,1931.8,3.68158]
[1742252467441,3.09373,1931.9,1931.8,0.6561]
[1742252467847,1.0354,1931.8,1931.7,1.0354]
[1742252468153,1.03545,1931.7,1931.6,1.03545]
[1742252468342,1.03545,1931.7,1931.6,4.42845]
[1742252468946,2.41141,1931.8,1931.7,1.03544]
[1742252469851,1.376,1931.8,1931.7,1.03544]
[1742252470145,2.41138,1931.8,1931.7,1.03544]
[1742252470546,1.376,1931.8,1931.7,1.03544]
[1742252472546,2.41138,1931.8,1931.7,1.03544]
[1742252473557,1.03544,1931.7,1931.6,4.42845]
[1742252473752,1.4196,1931.7,1931.6,4.42849]
[1742252473955,2.45504,1931.7,1931.6,3.393]
[1742252474453,1.03549,1931.6,1931.5,4.0727]
[1742252474754,2.0256,1931.6,1931.5,5.1082]
[1742252475956,3.06109,1931.6,1931.5,1.7212]
[1742252476757,2.0256,1931.6,1931.5,1.7212]
[1742252477057,1.3374,1931.6,1931.5,1.7212]
[1742252478448,1.3374,1931.6,1931.5,5.1072]
[1742252478650,1.3374,1931.6,1931.5,1.7212]
[1742252478651,2.37289,1931.6,1931.5,1.7212]
[1742252478955,2.37289,1931.6,1931.5,5.1072]
[1742252479148,2.37289,1931.6,1931.5,4.0717]
[1742252479547,1.03554,1931.5,1931.3,0.00776177]
[1742252479857,3.05914,1931.5,1931.4,4.4196]
[1742252481354,2.34634,1931.5,1931.4,4.4196]
[1742252481559,3.01224,1931.5,1931.4,4.4196]
[1742252482461,3.01224,1931.5,1931.4,3.384]
[1742252483261,3.01224,1931.5,1931.4,4.4196]
[1742252484160,3.01224,1931.5,1931.4,3.384]
[1742252484365,3.01224,1931.5,1931.4,4.4196]
[1742252484657,3.01224,1931.5,1931.4,3.384]
[1742252485159,3.01224,1931.5,1931.3,0.00776177]
[1742252485160,1.0356,1931.4,1931.3,0.00776177]
[1742252485358,1.0356,1931.4,1931.3,3.38476177]
[1742252485359,2.3633,1931.4,1931.3,3.38476177]
[1742252485549,2.3633,1931.4,1931.3,0.00776177]
[1742252487858,1.3277,1931.4,1931.3,1.04341177]
[1742252488063,1.3277,1931.4,1931.3,2.39241177]
[1742252488261,1.3277,1931.4,1931.3,3.06171177]
[1742252491667,2.3633,1931.4,1931.3,2.02606177]
[1742252491867,2.3633,1931.4,1931.3,2.39241177]
[1742252492162,2.3633,1931.4,1931.3,0.00776177]
[1742252493267,2.3633,1931.4,1931.3,1.42996177]
[1742252493470,2.3633,1931.4,1931.3,2.46561177]
[1742252495567,1.3277,1931.4,1931.3,3.13941177]
[1742252497865,1.03547,1931.7,1931.3,3.13941177]
[1742252498066,1.3168,1931.5,1931.4,6.5454]
[1742252500469,3.2078,1931.9,1931.4,5.5098]
[1742252500675,0.00776177,1932.0,1931.9,1.03533]
[1742252500870,1.03514,1932.3,1931.9,1.03533]
[1742252500871,1.3275,1932.1,1932.0,1.03527]
[1742252501067,1.3275,1932.1,1932.0,2.45887]
[1742252502170,0.00776177,1932.2,1932.1,1.03522]
[1742252502368,1.37756177,1932.2,1932.1,6.49022]
[1742252502673,0.00776177,1932.2,1932.1,6.49022]
[1742252506169,0.00776177,1932.2,1932.1,5.455]
[1742252506371,4.25073177,1932.2,1932.1,4.7868]
[1742252506574,4.25073177,1932.2,1931.8,3.25968]
[1742252506575,1.03527,1932.0,1931.9,4.0462]
[1742252506779,3.15325,1932.1,1932.0,1.03527]
[1742252507679,3.15325,1932.1,1932.0,2.37237]
[1742252508284,1.4359,1932.1,1932.0,2.37237]
[1742252508781,3.2078,1932.8,1932.7,1.0349]
[1742252509078,1.03495,1932.6,1932.5,3.394]
[1742252511082,1.03495,1932.6,1932.5,4.42901]
[1742252511272,1.03495,1932.6,1932.5,5.81731]
[1742252511878,1.03495,1932.6,1932.5,4.7823]
[1742252512079,2.39525,1932.6,1932.5,4.7823]
[1742252512280,2.39525,1932.6,1932.5,5.81731]
[1742252514685,2.39525,1932.6,1932.5,4.7823]
[1742252515586,2.39525,1932.6,1932.5,5.81731]
[1742252517288,2.39525,1932.6,1932.5,4.7823]
[1742252518476,2.39525,1932.6,1932.5,5.81731]
[1742252518885,2.39525,1932.6,1932.5,4.7823]
[1742252519591,2.39525,1932.6,1932.5,5.81731]
[1742252521892,2.39525,1932.6,1932.5,4.7823]
[1742252523093,2.39525,1932.6,1932.5,5.81731]
[1742252524790,1.3603,1932.6,1932.5,5.81731]
[1742252525397,3.2078,1933.0,1932.9,1.03479]
[1742252525902,2.35823,1933.1,1932.9,1.03479]
[1742252526086,1.03474,1933.0,1932.9,2.37239]